Cogmind - Beta 13 *** ADVENTURER MODE // 2024.07.13 @ 12:13:13 // Winter2022/Polymind Player: Don Result: Self-destructed Performance ------------- Evolutions (1) 500 Regions Visited (2) 400 Robots Destroyed (0) 0 Value Destroyed (0) 0 Prototype IDs (0) 0 Alien Tech Used (0) 0 Bonus (760) 760 TOTAL SCORE: 1480 Bonus ------- Polymind Skill 560 Pacifist 200 Cogmind --------- Core Integrity 400/400 Matter 0/0 Energy 50/50 System Corruption 0% Temperature Cool (0) Movement Rolling (80) Location -9/Materials Parts ------- > --- POWER (1) -------- Light Ion Engine > --- PROPULSION (2) --- Wheel Wheel > --- UTILITY (2) ------ Improved Terrain Scanner Seismic Detector > --- WEAPON (1) ------- Mining Laser > --- INVENTORY (0) ---- (None) Peak State ------------ > --- POWER ------------ Light Ion Engine > --- PROPULSION ------- Wheel Wheel > --- UTILITY ---------- Improved Terrain Scanner Seismic Detector > --- WEAPON ----------- Mining Laser > --- INVENTORY -------- (None) [Rating: 8] Favorites ----------- Power Light Ion Engine Engine Light Ion Engine Propulsion Wheel Wheel Wheel Utility Improved Terrain Scanner Device Improved Terrain Scanner Weapon Mining Laser Special Weapon Mining Laser Build | -11 -10 -9 ------- Run | Yrd Mat Mat Slots Evolved . | . . . Power . | . . . Propulsion . | . . . Utility . | . . . Weapon . | . . . Parts Attached . | . . . Power . | . . . Engine . | . . . Core . | . . . Reactor . | . . . Propulsion . | . . . Treads . | . . . Leg . | . . . Wheel . | . . . Hover . | . . . Flight . | . . . Utility . | . . . Device . | . . . Storage . | . . . Processor . | . . . Hackware . | . . . Protection . | . . . Artifact . | . . . Weapon . | . . . Energy Gun . | . . . Energy Cannon . | . . . Ballistic Gun . | . . . Ballistic Cannon . | . . . Launcher . | . . . Special Weapon . | . . . Impact Weapon . | . . . Slashing Weapon . | . . . Piercing Weapon . | . . . Special Melee Weapon . | . . . Unidentified Prototypes . | . . . Parts Lost . | . . . Power . | . . . Propulsion . | . . . Utility . | . . . Weapon . | . . . Highest Loss Streak . | . . . To Critical Strikes . | . . . Average Slot Usage (%) 100 | . 100 100 Engine 16 | . 16 16 Wheel 33 | . 33 33 Device 33 | . 33 33 Special Weapon 16 | . 16 16 Naked Turns . | . . . Heaviest Build 6 | 6 6 6 Greatest Support 20 | 20 20 20 Greatest Overweight (x) . | . . . Average Overweight (x) . | . . . Largest Inventory Capacity . | . . . Average Capacity . | . . . Most Carried . | . . . Average Carried . | . . . Final Capacity . | . . . Final Carried . | . . . Class Distribution -------------------- 100% | Tunneler Dominant Class ---------------- Tunneler | -10/Materials Tunneler | -9/Materials Resources | -11 -10 -9 ----------- Run | Yrd Mat Mat Matter Collected . | . . . Remotely . | . . . Salvage Created . | . . . Parts . | . . . Haulers Intercepted . | . . . Recyclers Shooed . | . . . Parts Field Recycled . | . . . Retrieved Matter . | . . . Parts Self-Destructed . | . . . Prevented . | . . . Kills | -11 -10 -9 ------- Run | Yrd Mat Mat Combat Hostiles Destroyed . | . . . Classes Destroyed . | . . . Best Kill Streak . | . . . Combat Bots Only . | . . . Max Kills in Single Turn . | . . . Gunslinging . | . . . Exploded . | . . . Melee . | . . . Uniques/NPCs Destroyed . | . . . Combat | -11 -10 -9 -------- Run | Yrd Mat Mat Hostile Shots Fired 6 | . . 6 Missed 3 | . . 3 Damage Taken 35 | . . 35 Core . | . . . Absorbed by Shields . | . . . Ignored by Resistances 10 | . . 10 Core Remaining (%) 100 | 100 100 . Volleys Fired 5 | 1 1 3 Largest 1 | 1 1 1 Hottest 100 | 100 100 100 Shots Fired 5 | 1 1 3 Gun . | . . . Cannon . | . . . Launcher . | . . . Special 5 | 1 1 3 Kinetic . | . . . Thermal 5 | 1 1 3 Explosive . | . . . Electromagnetic . | . . . Robot Hit Streak 1 | . . 1 Robot Miss Streak 1 | . . 1 Penetration Max . | . . . Secondary Targets . | . . . Shots Hit Robots 1 | . . 1 Core Hits . | . . . Critical Kills . | . . . Critical Parts Destroyed . | . . . Critical Strikes . | . . . Melee Attacks . | . . . Impact . | . . . Slashing . | . . . Piercing . | . . . Sneak Attacks . | . . . Combat Hostiles . | . . . Follow-up Attacks . | . . . Damage Inflicted 24 | . . 24 Guns . | . . . Cannons . | . . . Explosions . | . . . Melee . | . . . Ramming . | . . . Kinetic . | . . . Thermal 24 | . . 24 Explosive . | . . . Electromagnetic . | . . . Impact . | . . . Slashing . | . . . Piercing . | . . . Highest Corruption . | . . . Average Corruption . | . . . Corruption Purged . | . . . Corruption Blocked . | . . . Overload Shots . | . . . Overflow Damage . | . . . Projectiles . | . . . Explosions . | . . . Melee . | . . . Knockbacks . | . . . Impact . | . . . Kinetic . | . . . Secondary . | . . . Self-Inflicted Damage . | . . . Shots . | . . . Rammed . | . . . Targets Rammed . | . . . Kicked . | . . . Crushed . | . . . Highest Temperature 124 | 80 80 124 Average Temperature 52 | 55 42 57 Received Heat Transfer 18 | . . 18 Siege Activations . | . . . Robots Corrupted . | . . . Combat Hostiles . | . . . Parts Fried . | . . . Impact Corruptions . | . . . Robots Melted . | . . . Combat Hostiles . | . . . Parts Melted . | . . . Heat Transferred 50 | . . 50 Parts Sabotaged . | . . . Parts Stolen . | . . . Parts Stripped . | . . . Power Chain Reactions . | . . . Alert | -11 -10 -9 ------- Run | Yrd Mat Mat Peak Influence 102 | . . 102 Initial . | . . . Average 22 | . . 49 Maximum Alert Level . | . . . Low Security (%) 100 | 100 100 100 Level 1 . | . . . Level 2 . | . . . Level 3 . | . . . Level 4 . | . . . Level 5 . | . . . High Security . | . . . Max Security . | . . . Squads Dispatched 3 | . . 3 Investigation 1 | . . 1 Extermination . | . . . Reinforcement 2 | . . 2 Assault . | . . . Garrison . | . . . Intercept . | . . . Searches Triggered . | . . . Construction Impeded . | . . . Haulers Reinforced . | . . . Active Scanning Responses . | . . . Cargo Convoy Interrupts . | . . . Stealth | -11 -10 -9 --------- Run | Yrd Mat Mat Distress Signals 2 | . . 2 Communications Jammed . | . . . Distress Signals . | . . . Times Spotted 6 | . . 6 Peak Tracking Total 7 | . . 7 Tactical Retreats . | . . . Traps | -11 -10 -9 ------- Run | Yrd Mat Mat Traps Triggered 1 | . . 1 Indirectly . | . . . Trap Hack Attempts . | . . . Triggered . | . . . Disarmed . | . . . Reprogrammed . | . . . Reused . | . . . Traps Extracted . | . . . Installed . | . . . Triggered . | . . . Machines | -11 -10 -9 ---------- Run | Yrd Mat Mat Machines Disabled . | . . . Max in Single Turn . | . . . Machines Repaired . | . . . Machines Dismantled . | . . . Machines Sabotaged . | . . . Overloaded Fab Kills . | . . . Hacking | -11 -10 -9 --------- Run | Yrd Mat Mat Machines Accessed 2 | . 1 1 Terminals 2 | . 1 1 Fabricators . | . . . Repair Stations . | . . . Recycling Units . | . . . Scanalyzers . | . . . Garrison Access . | . . . Total Hacks 4 | . 3 1 Successful 2 | . 1 1 Failed 2 | . 2 . Catastrophic . | . . . Database Lockouts . | . . . Manual . | . . . Terminals 4 | . 3 1 Fabricators . | . . . Repair Stations . | . . . Recycling Units . | . . . Scanalyzers . | . . . Garrison Access . | . . . Terminal Hacks 2 | . 1 1 Investigation Status 1 | . 1 . Zone Layout 1 | . . 1 Fabricator Hacks . | . . . Repair Station Hacks . | . . . Recycling Unit Hacks . | . . . Scanalyzer . | . . . Garrison Access Hacks . | . . . Unauthorized Hacks . | . . . Terminals . | . . . Fabricators . | . . . Repair Stations . | . . . Recycling Units . | . . . Scanalyzers . | . . . Garrison Access . | . . . Data Cores Recovered . | . . . Used . | . . . Hacking Detections 1 | . . 1 Full Trace Events . | . . . Feedback Events . | . . . Feedback Blocked . | . . . Robot Schematics Acquired . | . . . Robots Built . | . . . Authchips . | . . . Time . | . . . Total Robot Build Rating . | . . . Part Schematics Acquired . | . . . Parts Built . | . . . Authchips . | . . . Time . | . . . Total Part Build Rating . | . . . Parts Repaired . | . . . Time . | . . . Parts Recycled . | . . . Recycled Matter . | . . . Retrieved Matter . | . . . Retrieved Components . | . . . Parts Scanalyzed . | . . . Part Schematics Acquired . | . . . Parts Damaged . | . . . Bothacking | -11 -10 -9 ------------ Run | Yrd Mat Mat Used RIF Installer . | . . . Robots Hacked . | . . . Non-combat . | . . . Combat . | . . . Robot Hacks Applied . | . . . Relay Couplers Released . | . . . Fabnet Peak Effective % . | . . . Robots Rewired . | . . . Allies Hacked . | . . . Hacks Repelled . | . . . Allies | -11 -10 -9 -------- Run | Yrd Mat Mat Total Allies . | . . . Largest Group . | . . . Highest-Rated Group . | . . . Highest-Rated Ally . | . . . Total Orders . | . . . Ally Attacks . | . . . Total Damage . | . . . Kills . | . . . Allies Corrupted . | . . . Allies Melted . | . . . Intel | -11 -10 -9 ------- Run | Yrd Mat Mat Robot Analysis Total 1 | 1 . . Derelict Logs Recovered . | . . . Drone Launches . | . . . Drone Recoveries . | . . . Exploration | -11 -10 -9 ------------- Run | Yrd Mat Mat Turns Passed 214 | 17 100 97 Spaces Moved 244 | 23 116 105 Core 18 | 18 . . Treads . | . . . Legs . | . . . Wheels 226 | 5 116 105 Hover . | . . . Flight . | . . . Fastest Speed 50 | 50 80 80 Average Speed 77 | 56 80 80 Slowest Speed 80 | 80 80 80 Overloaded Moves . | . . . Propulsion Burnouts . | . . . Robots Hopped . | . . . Cave-ins Triggered . | . . . Exploration Rate (%) 17 | 4 29 18 Regions Visited 2 Branch Regions . Pre-discovered Areas . | . . . Known Exits Taken . | . . . Unknown Exits Taken 2 | 1 1 . Scrap Searched . | . . . Spaces Dug 1 | 1 . . Terrain Destroyed 1 | 1 . . Melee . | . . . Projectile 1 | 1 . . AOE . | . . . Terrain Rammed . | . . . Walls Destroyed . | . . . Machines Disabled . | . . . Actions | -11 -10 -9 --------- Run | Yrd Mat Mat Total 250 | 23 119 108 Wait 3 | . 3 . Move 242 | 22 115 105 Hop . | . . . Pick Up . | . . . Fast Attach . | . . . Attach . | . . . Detach . | . . . Swap . | . . . Drop . | . . . Fire 5 | 1 1 3 Melee . | . . . Ram . | . . . Kick . | . . . Crush . | . . . Escape Stasis . | . . . Rewire . | . . . Trap . | . . . Miscellaneous . | . . . Route ------- -11/Scrapyard -10/Materials -9/Materials History --------- Turn | Location | Event 4 | -11/Scrapyard | Discovered new exit (range 15) 18 | -11/Scrapyard | Entered Materials 116 | -10/Materials | Discovered new exit (range 3) 118 | -10/Materials | Entered another Materials area 215 | -9/Materials | Self-destructed Last Messages --------------- >>Layout(Zone) Retrieving Zone 8R layout... Downloaded map data. 00162_ K-01 Serf collects debris. 00171_ O-16 Technician: "IFF HANDSHAKE FAILED. SECURING TERMINAL." 00172_ K-01 Serf collects debris. 00175_ ALERT: Hostiles spotted, dispatching reinforcements to Terminal M001. 00195_ Triggered Alarm Trap. 00195_ An alarm sounds. 00195_ ALERT: Alarm triggered, dispatching investigation squad. 00200_ K-01 Serf collects debris. 00200_ ALERT: Hostiles spotted, dispatching reinforcements to Terminal M010. 00204_ K-01 Serf collects debris. 00206_ W-16 Scout destroyed. 00211_ K-01 Serf collects debris. 00213_ U-05 Engineer lays Concrete. Map ----- +----------------------------------------------------+ | ?????????????????????????????????????????????????? | | ?????????????????????????????????????????????????? | | ?????????????????????????????????????????????????? | | ?????????????????????????????????????????????????? | | ?? ???????????????????????????????????????????? | | ?? ???????????????????????????????????????????? | | ? #??????????????????????????????????????????? | | #??????????? ?????#????????????????????????? | | #??????????????????????????????????????????? | | ##????????## ??????????????????????????????? | | ? ????? ??????#???????????????????????? | | ????? #?#???????????????????????????? | | ?????? #??????????????#??????????????? | | ?????? ###???????????????????????????? | | ??????? #??????#########????????????? | | ################# # """?# #?????????????? | | ????#???????????# # """?#! #?????????????? | | ????????????????# + """?# #?????????????? | | ????????????????# # ?# #?????????????? | | ????????#???????# # ?# ! #?????????????? | | ??????########### ######??? ????????#?????? | | ??????# ##########+################# | | ??????# =%! | | ??????# """ !*= | | ??????# """"" | | ??????# ! """"" ###t######################## | | ??????# """"" #?# ?????????????????#???? | | ??????# """ #?# """ ??????????????????? | | ??????# ### """ #???? ????????????? | | ??????# # """ #?????????????????? | | ####### ""T"" # ??????????????????? | | """"" # ???????????????????? | | ############## ######## ???????????????????? | | ?????????????# #??????# ???????????????????? | | ?????????????# ##?????######???????????????????? | | ?#?########### #??????????????#????????????????? | | ???# # #????????????????????#??????????? | | ???# """ """ # #????????????????#??????????????? | | ???# """ """ # #???????????????????????????????? | | ???# """ """ + ???????????????????????????????? | | ???# # #???????????????????????????????? | | ???# "Y" # #???????????????????????????????? | | ??## """ # #???????????????????????????????? | | ??# # #???????????????????????????????? | | ??############ #???????????????????????????????? | | ???# """ """ # #???????????????????????????????? | | ?????????????????????????????????????????????????? | | ?????????????????????????????????????????????????? | | ?????????????????????????????????????????????????? | | ?????????????????????????????????????????????????? | +----------------------------------------------------+ Best States ------------- Heat Dissipation 25 Energy Generation 10 Energy Capacity 100 Sight Range 16 Terrain Scan Range 16 Terrain Scan Density 10 Resistance: KI 20 Resistance: TH 20 Resistance: EX 20 Resistance: EM 20 Resistance: I 20 Resistance: S 20 Resistance: P 20 Evasion (%) 50 Offensive Hacking 10 Item Schematics ----------------- None Robot Schematics ------------------ None Fabricated ------------ Nothing Alien Tech Used ----------------- None Achievements -------------- None Challenges ------------ None Polymind | -11 -10 -9 ---------- Run | Yrd Mat Mat Hosts 1 | 1 . . Combat Hostiles . | . . . Allies . | . . . Unique Host Classes 1 | 1 . . Average Host Suspicion 50 | 32 43 58 Unsuspicious Activity 2 | 2 . . Returns to Shadow . | . . . Fuzzy Dispatches . | . . . Protomatter Created . | . . . Used 5 | 5 . . Decayed . | . . . Highest Spend 5 | 5 . . Game ------ Seed StructuralNeutronCloak Manual? 0 Play Time 00:07:06 Cumulative 51.1 hours Start 2024.07.13 @ 12:07:52 End 2024.07.13 @ 12:13:13 Sessions 1 Manual Loads 0 Difficulty Adventurer Special Mode Winter2022/Polymind Game No. 17 Rogue 10 Adventurer 7 Explorer 0 Win Type - Total 1 Types 1/0/0/0/0/0/0/0/0 Lore% 5 Gallery% 36 Achievement% 27 Wizard Run 0 Options --------- Layout 2 ASCII 0 Keyboard 0 Movement Mouse Keybinds 0 Fullscreen 1 Font 32/SmallcapsGlow Map View 50x44 Zoom Use 0% Tactical HUD 1 Map Filters NONE Filters NONE Steam 1 RUN: 761f32fc-c724-4fda-8b43-890fa89761f1